[Event "Klass I-IV 2025"]
[Site "Uppsala, Sweden"]
[Date "2025.07.02"]
[Round "3.2"]
[White "Jonsson, Alice"]
[Black "Smeds, Joakim"]
[Result "1-0"]
[TimeControl "90 min for 40 move + 30 min with an increment of 30 sec starting move 1"]
[WhiteFideId "1719130"]
[BlackFideId "1762591"]
[WhiteElo "1833"]
[BlackElo "1760"]

1. e4 {[%clk 01:30:56]} {[%emt 00:00:03]} c6 {[%clk 01:29:36]} {[%emt
00:01:13]} 2. Nf3 {[%clk 01:31:16]} {[%emt 00:00:20]} d5 {[%clk 01:29:39]}
{[%emt 00:00:28]} 3. Nc3 {[%clk 01:31:36]} {[%emt 00:00:11]} dxe4 {[%clk
01:29:25]} {[%emt 00:00:43]} 4. Nxe4 {[%clk 01:31:57]} {[%emt 00:00:10]} Nf6
{[%clk 01:29:28]} {[%emt 00:00:27]} 5. Qe2 {[%clk 01:32:17]} {[%emt 00:00:10]}
Nxe4 {[%clk 01:28:55]} {[%emt 00:01:02]} 6. Qxe4 {[%clk 01:32:39]} {[%emt
00:00:08]} Be6 {[%clk 01:27:54]} {[%emt 00:01:31]} 7. d4 {[%clk 01:31:27]}
{[%emt 00:01:43]} Nd7 {[%clk 01:27:42]} {[%emt 00:00:41]} 8. c4 {[%clk
01:29:14]} {[%emt 00:02:44]} Nf6 {[%clk 01:27:18]} {[%emt 00:00:53]} 9. Qh4
{[%clk 01:29:01]} {[%emt 00:00:43]} g6 {[%clk 01:15:18]} {[%emt 00:12:30]} 10.
Bd3 {[%clk 01:27:01]} {[%emt 00:02:30]} Bg7 {[%clk 01:10:43]} {[%emt 00:05:05]}
11. h3 {[%clk 01:26:26]} {[%emt 00:01:05]} Bf5 {[%clk 01:08:10]} {[%emt
00:03:03]} 12. Bxf5 {[%clk 01:23:58]} {[%emt 00:02:58]} Qa5+ {[%clk 01:08:16]}
{[%emt 00:00:23]} 13. Bd2 {[%clk 01:23:44]} {[%emt 00:00:45]} Qxf5 {[%clk
01:08:31]} {[%emt 00:00:15]} 14. O-O {[%clk 01:22:59]} {[%emt 00:01:15]} h6
{[%clk 01:00:42]} {[%emt 00:08:19]} 15. Bb4 {[%clk 01:15:48]} {[%emt 00:07:41]}
a5 {[%clk 00:56:08]} {[%emt 00:05:03]} 16. Ba3 {[%clk 01:14:43]} {[%emt
00:01:37]} g5 {[%clk 00:50:14]} {[%emt 00:06:23]} 17. Qg3 {[%clk 01:14:55]}
{[%emt 00:00:18]} g4 {[%clk 00:32:06]} {[%emt 00:18:38]} 18. Qc7 {[%clk
00:50:19]} {[%emt 00:25:06]} O-O {[%clk 00:29:42]} {[%emt 00:02:54]} 19. hxg4
{[%clk 00:46:47]} {[%emt 00:04:02]} Nxg4 {[%clk 00:25:02]} {[%emt 00:05:09]} 20.
Qxb7 {[%clk 00:40:24]} {[%emt 00:06:54]} Qf4 {[%clk 00:20:19]} {[%emt
00:05:13]} 21. Qxe7 {[%clk 00:31:42]} {[%emt 00:09:12]} Bxd4 {[%clk 00:19:25]}
{[%emt 00:01:24]} 22. Bd6 {[%clk 00:29:40]} {[%emt 00:02:32]} Bxf2+ {[%clk
00:14:10]} {[%emt 00:05:45]} 23. Rxf2 {[%clk 00:29:36]} {[%emt 00:00:34]} Qxc4
{[%clk 00:13:02]} {[%emt 00:01:37]} 24. Ne5 {[%clk 00:27:29]} {[%emt 00:02:37]}
Nxe5 {[%clk 00:09:04]} {[%emt 00:04:29]} 25. Bxe5 {[%clk 00:27:06]} {[%emt
00:00:53]} Qg4 {[%clk 00:05:35]} {[%emt 00:03:58]} 26. Qf6 {[%clk 00:23:58]}
{[%emt 00:03:39]} Kh7 {[%clk 00:05:46]} {[%emt 00:00:19]} 27. Raf1 {[%clk
00:21:43]} {[%emt 00:02:44]} Ra7 {[%clk 00:04:54]} {[%emt 00:01:22]} 28. Rf3
{[%clk 00:20:20]} {[%emt 00:01:54]} Rg8 {[%clk 00:01:40]} {[%emt 00:03:45]} 29.
Rg3 {[%clk 00:19:30]} {[%emt 00:01:19]} Qxg3 {[%clk 00:01:34]} {[%emt
00:00:36]} 30. Bxg3 {[%clk 00:19:53]} {[%emt 00:00:07]} Rxg3 {[%clk 00:01:54]}
{[%emt 00:00:09]} 31. Qf2 {[%clk 00:20:13]} {[%emt 00:00:10]} 1-0

[Event "Klass I-IV 2025"]
[Site "Uppsala, Sweden"]
[Date "2025.07.02"]
[Round "3.3"]
[White "Karrlander, Gunnar"]
[Black "Nyberg, Per"]
[Result "1/2-1/2"]
[TimeControl "90 min for 40 move + 30 min with an increment of 30 sec starting move 1"]
[WhiteFideId "1711695"]
[BlackFideId "1716743"]
[WhiteElo "1759"]
[BlackElo "1672"]

1. Nf3 {[%clk 01:30:54]} {[%emt 00:00:05]} g6 {[%clk 01:29:55]} {[%emt
00:01:04]} 2. c4 {[%clk 01:30:44]} {[%emt 00:00:41]} Bg7 {[%clk 01:29:23]}
{[%emt 00:01:01]} 3. d4 {[%clk 01:30:56]} {[%emt 00:00:17]} h6 {[%clk
01:28:33]} {[%emt 00:01:21]} 4. Nc3 {[%clk 01:30:58]} {[%emt 00:00:28]} a6
{[%clk 01:27:00]} {[%emt 00:02:03]} 5. e4 {[%clk 01:28:27]} {[%emt 00:03:01]}
d6 {[%clk 01:24:43]} {[%emt 00:02:47]} 6. Be3 {[%clk 01:26:49]} {[%emt
00:02:08]} Nd7 {[%clk 01:20:27]} {[%emt 00:04:46]} 7. Be2 {[%clk 01:24:44]}
{[%emt 00:02:35]} e6 {[%clk 01:16:57]} {[%emt 00:04:00]} 8. Qd2 {[%clk
01:23:02]} {[%emt 00:02:11]} Ne7 {[%clk 01:13:52]} {[%emt 00:03:35]} 9. O-O-O
{[%clk 01:18:58]} {[%emt 00:04:35]} b6 {[%clk 01:01:44]} {[%emt 00:12:39]} 10.
g4 {[%clk 01:15:33]} {[%emt 00:03:54]} Bb7 {[%clk 00:57:03]} {[%emt 00:05:12]}
11. h4 {[%clk 01:12:55]} {[%emt 00:03:06]} Nf6 {[%clk 00:47:15]} {[%emt
00:10:19]} 12. d5 {[%clk 01:01:11]} {[%emt 00:12:14]} e5 {[%clk 00:45:19]}
{[%emt 00:02:26]} 13. Nh2 {[%clk 00:55:24]} {[%emt 00:06:16]} Nd7 {[%clk
00:34:18]} {[%emt 00:11:32]} 14. Nf1 {[%clk 00:54:29]} {[%emt 00:01:24]} Bc8
{[%clk 00:32:02]} {[%emt 00:02:47]} 15. Ng3 {[%clk 00:54:04]} {[%emt 00:00:55]}
Nc5 {[%clk 00:30:07]} {[%emt 00:02:25]} 16. h5 {[%clk 00:49:48]} {[%emt
00:04:46]} g5 {[%clk 00:29:27]} {[%emt 00:01:10]} 17. Nf5 {[%clk 00:48:55]}
{[%emt 00:01:22]} Bxf5 {[%clk 00:29:05]} {[%emt 00:00:51]} 18. gxf5 {[%clk
00:49:03]} {[%emt 00:00:23]} Bf6 {[%clk 00:28:14]} {[%emt 00:01:20]} 19. f3
{[%clk 00:39:51]} {[%emt 00:09:44]} Ng8 {[%clk 00:27:25]} {[%emt 00:01:18]} 20.
Kb1 {[%clk 00:39:30]} {[%emt 00:00:51]} Qd7 {[%clk 00:25:57]} {[%emt 00:01:58]}
21. Qc2 {[%clk 00:39:27]} {[%emt 00:00:33]} Qd8 {[%clk 00:24:59]} {[%emt
00:01:28]} 22. Rc1 {[%clk 00:39:26]} {[%emt 00:00:31]} Ne7 {[%clk 00:24:19]}
{[%emt 00:01:10]} 23. Nd1 {[%clk 00:39:35]} {[%emt 00:00:20]} Nb7 {[%clk
00:23:34]} {[%emt 00:01:16]} 24. Nf2 {[%clk 00:39:51]} {[%emt 00:00:14]} Ng8
{[%clk 00:22:49]} {[%emt 00:01:15]} 25. Ng4 {[%clk 00:39:35]} {[%emt 00:00:46]}
Nc5 {[%clk 00:21:32]} {[%emt 00:01:48]} 26. Rhd1 {[%clk 00:38:29]} {[%emt
00:01:36]} Be7 {[%clk 00:21:17]} {[%emt 00:00:43]} 27. Bd2 {[%clk 00:37:39]}
{[%emt 00:01:21]} Nf6 {[%clk 00:21:13]} {[%emt 00:00:35]} 28. Rh1 {[%clk
00:35:16]} {[%emt 00:02:52]} Nxg4 {[%clk 00:21:18]} {[%emt 00:00:25]} 29. fxg4
{[%clk 00:35:44]} {[%emt 00:00:03]} f6 {[%clk 00:20:46]} {[%emt 00:01:02]} 30.
Be3 {[%clk 00:23:34]} {[%emt 00:12:37]} O-O {[%clk 00:20:15]} {[%emt 00:01:03]}
31. Ka1 {[%clk 00:23:24]} {[%emt 00:00:35]} 1/2-1/2

[Event "Klass I-IV 2025"]
[Site "Uppsala, Sweden"]
[Date "2025.07.03"]
[Round "4.2"]
[White "Andersson, Elsa"]
[Black "Olsson, Linn"]
[Result "1-0"]
[TimeControl "90 min for 40 move + 30 min with an increment of 30 sec starting move 1"]
[WhiteFideId "1757300"]
[BlackFideId "1722514"]
[WhiteElo "1810"]
[BlackElo "1765"]

1. e4 {[%clk 01:30:45]} {[%emt 00:00:14]} e5 {[%clk 01:30:14]} {[%emt
00:00:47]} 2. Nf3 {[%clk 01:30:39]} {[%emt 00:00:36]} Nc6 {[%clk 01:29:45]}
{[%emt 00:00:59]} 3. Bc4 {[%clk 01:30:10]} {[%emt 00:00:58]} Bc5 {[%clk
01:28:43]} {[%emt 00:01:33]} 4. c3 {[%clk 01:28:00]} {[%emt 00:02:40]} Nf6
{[%clk 01:28:32]} {[%emt 00:00:41]} 5. d3 {[%clk 01:27:09]} {[%emt 00:01:21]}
O-O {[%clk 01:27:25]} {[%emt 00:01:37]} 6. O-O {[%clk 01:24:14]} {[%emt
00:03:25]} d6 {[%clk 01:22:35]} {[%emt 00:05:19]} 7. Nbd2 {[%clk 01:18:08]}
{[%emt 00:06:36]} Bg4 {[%clk 01:17:17]} {[%emt 00:05:49]} 8. Re1 {[%clk
01:13:46]} {[%emt 00:04:52]} a6 {[%clk 01:09:27]} {[%emt 00:08:20]} 9. a4
{[%clk 01:07:50]} {[%emt 00:06:26]} a5 {[%clk 00:55:42]} {[%emt 00:14:15]} 10.
Nf1 {[%clk 01:02:38]} {[%emt 00:05:42]} Qc8 {[%clk 00:42:25]} {[%emt 00:13:47]}
11. Be3 {[%clk 00:53:33]} {[%emt 00:09:34]} Bxe3 {[%clk 00:40:10]} {[%emt
00:02:46]} 12. Nxe3 {[%clk 00:51:20]} {[%emt 00:02:42]} Bh5 {[%clk 00:36:41]}
{[%emt 00:03:59]} 13. h3 {[%clk 00:43:43]} {[%emt 00:08:06]} Ne7 {[%clk
00:33:57]} {[%emt 00:03:15]} 14. Nf1 {[%clk 00:38:36]} {[%emt 00:05:37]} Bxf3
{[%clk 00:32:23]} {[%emt 00:02:04]} 15. Qxf3 {[%clk 00:38:42]} {[%emt
00:00:23]} Ng6 {[%clk 00:32:46]} {[%emt 00:00:08]} 16. Ne3 {[%clk 00:33:26]}
{[%emt 00:05:45]} Nf4 {[%clk 00:31:35]} {[%emt 00:01:43]} 17. Nf5 {[%clk
00:33:30]} {[%emt 00:00:25]} Qd7 {[%clk 00:26:57]} {[%emt 00:05:09]} 18. d4
{[%clk 00:26:03]} {[%emt 00:07:57]} Ng6 {[%clk 00:26:30]} {[%emt 00:00:57]} 19.
Rad1 {[%clk 00:22:08]} {[%emt 00:04:25]} Qxa4 {[%clk 00:24:54]} {[%emt
00:02:06]} 20. b3 {[%clk 00:22:02]} {[%emt 00:00:35]} Qd7 {[%clk 00:23:09]}
{[%emt 00:02:16]} 21. h4 {[%clk 00:19:55]} {[%emt 00:02:37]} b5 {[%clk
00:22:20]} {[%emt 00:01:19]} 22. Bf1 {[%clk 00:18:40]} {[%emt 00:01:44]} exd4
{[%clk 00:17:08]} {[%emt 00:05:43]} 23. cxd4 {[%clk 00:16:49]} {[%emt
00:02:22]} d5 {[%clk 00:12:07]} {[%emt 00:05:30]} 24. e5 {[%clk 00:12:13]}
{[%emt 00:05:05]} Ne4 {[%clk 00:11:50]} {[%emt 00:00:47]} 25. Qg4 {[%clk
00:12:17]} {[%emt 00:00:25]} h5 {[%clk 00:03:25]} {[%emt 00:08:57]} 26. Nh6+
{[%clk 00:12:04]} {[%emt 00:00:42]} 1-0

[Event "Klass I-IV 2025"]
[Site "Uppsala, Sweden"]
[Date "2025.07.03"]
[Round "4.3"]
[White "Ostensson, Jorgen"]
[Black "Eiserman, Daniel"]
[Result "1-0"]
[TimeControl "90 min for 40 move + 30 min with an increment of 30 sec starting move 1"]
[WhiteFideId "1751590"]
[BlackFideId "1786431"]
[WhiteElo "1682"]
[BlackElo "1583"]

1. e4 {[%clk 01:30:55]} {[%emt 00:00:04]} c5 {[%clk 01:30:08]} {[%emt
00:00:54]} 2. Nc3 {[%clk 01:30:05]} {[%emt 00:01:19]} Nc6 {[%clk 01:30:20]}
{[%emt 00:00:15]} 3. Nf3 {[%clk 01:28:40]} {[%emt 00:01:57]} g6 {[%clk
01:28:55]} {[%emt 00:01:55]} 4. Bc4 {[%clk 01:25:02]} {[%emt 00:04:09]} Bg7
{[%clk 01:27:17]} {[%emt 00:02:08]} 5. O-O {[%clk 01:23:45]} {[%emt 00:01:46]}
e6 {[%clk 01:23:18]} {[%emt 00:04:30]} 6. a3 {[%clk 01:22:35]} {[%emt
00:01:39]} a6 {[%clk 01:17:25]} {[%emt 00:06:24]} 7. Re1 {[%clk 01:16:42]}
{[%emt 00:06:23]} b5 {[%clk 01:13:40]} {[%emt 00:04:15]} 8. Ba2 {[%clk
01:12:52]} {[%emt 00:04:20]} Nge7 {[%clk 01:11:41]} {[%emt 00:02:29]} 9. d3
{[%clk 01:08:52]} {[%emt 00:04:30]} O-O {[%clk 01:09:57]} {[%emt 00:02:14]} 10.
Bg5 {[%clk 01:04:19]} {[%emt 00:05:03]} Qc7 {[%clk 01:07:07]} {[%emt 00:03:20]}
11. Rb1 {[%clk 00:52:24]} {[%emt 00:12:25]} Bb7 {[%clk 01:03:44]} {[%emt
00:03:54]} 12. Bxe7 {[%clk 00:46:33]} {[%emt 00:06:20]} Nxe7 {[%clk 01:03:13]}
{[%emt 00:01:02]} 13. Ne2 {[%clk 00:39:21]} {[%emt 00:07:41]} d5 {[%clk
00:40:46]} {[%emt 00:22:57]} 14. Ng3 {[%clk 00:38:00]} {[%emt 00:01:50]} dxe4
{[%clk 00:32:53]} {[%emt 00:08:24]} 15. dxe4 {[%clk 00:36:38]} {[%emt
00:01:52]} Rfd8 {[%clk 00:32:10]} {[%emt 00:01:12]} 16. Qe2 {[%clk 00:36:09]}
{[%emt 00:01:00]} c4 {[%clk 00:31:15]} {[%emt 00:01:25]} 17. b3 {[%clk
00:30:22]} {[%emt 00:06:16]} cxb3 {[%clk 00:28:11]} {[%emt 00:03:35]} 18. Bxb3
{[%clk 00:27:44]} {[%emt 00:03:09]} Qa5 {[%clk 00:22:57]} {[%emt 00:05:44]} 19.
h4 {[%clk 00:19:03]} {[%emt 00:09:10]} Qxa3 {[%clk 00:21:34]} {[%emt 00:01:53]}
20. h5 {[%clk 00:19:08]} {[%emt 00:00:25]} Qc5 {[%clk 00:17:14]} {[%emt
00:04:50]} 21. hxg6 {[%clk 00:17:19]} {[%emt 00:02:19]} hxg6 {[%clk 00:16:39]}
{[%emt 00:01:05]} 22. e5 {[%clk 00:15:13]} {[%emt 00:02:36]} Rd7 {[%clk
00:12:35]} {[%emt 00:04:34]} 23. Ng5 {[%clk 00:12:47]} {[%emt 00:02:56]} Bh6
{[%clk 00:06:47]} {[%emt 00:06:18]} 24. Nxe6 {[%clk 00:07:38]} {[%emt
00:05:39]} Qc6 {[%clk 00:06:09]} {[%emt 00:01:08]} 25. Qe4 {[%clk 00:06:08]}
{[%emt 00:02:00]} Qxe6 {[%clk 00:04:30]} {[%emt 00:02:08]} 26. Bxe6 {[%clk
00:06:01]} {[%emt 00:00:38]} Bxe4 {[%clk 00:04:38]} {[%emt 00:00:22]} 27. Bxd7
{[%clk 00:06:11]} {[%emt 00:00:20]} Bxc2 {[%clk 00:04:08]} {[%emt 00:01:00]} 28.
Rb2 {[%clk 00:05:36]} {[%emt 00:01:04]} Bd3 {[%clk 00:03:46]} {[%emt 00:00:53]}
29. e6 {[%clk 00:03:53]} {[%emt 00:02:13]} fxe6 {[%clk 00:02:26]} {[%emt
00:01:50]} 30. Bxe6+ {[%clk 00:04:06]} {[%emt 00:00:17]} Kf8 {[%clk 00:01:57]}
{[%emt 00:00:59]} 31. Rb3 {[%clk 00:02:44]} {[%emt 00:01:52]} Bc2 {[%clk
00:01:13]} {[%emt 00:01:14]} 32. Rf3+ {[%clk 00:02:15]} {[%emt 00:00:59]} Ke8
{[%clk 00:00:53]} {[%emt 00:00:51]} 33. Bd5 {[%clk 00:01:38]} {[%emt 00:01:06]}
Rd8 {[%clk 00:00:33]} {[%emt 00:00:50]} 34. Bc6+ {[%clk 00:01:39]} {[%emt
00:00:30]} Rd7 {[%clk 00:00:44]} {[%emt 00:00:19]} 35. Bxd7+ {[%clk 00:01:20]}
{[%emt 00:00:48]} Kxd7 {[%clk 00:01:09]} {[%emt 00:00:05]} 36. Rf7 {[%clk
00:01:37]} {[%emt 00:00:13]} Bg5 {[%clk 00:01:09]} {[%emt 00:00:30]} 37. Ne4
{[%clk 00:01:22]} {[%emt 00:00:45]} Bxe4 {[%clk 00:01:07]} {[%emt 00:00:33]} 38.
Rxe4 {[%clk 00:01:41]} {[%emt 00:00:11]} Kd6 {[%clk 00:01:01]} {[%emt
00:00:36]} 39. f4 {[%clk 00:01:56]} {[%emt 00:00:14]} Nc6 {[%clk 00:00:31]}
{[%emt 00:01:00]} 40. fxg5 {[%clk 00:01:55]} {[%emt 00:00:30]} 1-0

[Event "Klass I-IV 2025"]
[Site "Uppsala, Sweden"]
[Date "2025.07.04"]
[Round "5.1"]
[White "Linusson, Lasse"]
[Black "Wincent, Ingemar"]
[Result "1/2-1/2"]
[TimeControl "90 min for 40 move + 30 min with an increment of 30 sec starting move 1"]
[WhiteFideId "1708805"]
[BlackFideId "1714759"]
[WhiteElo "1909"]
[BlackElo "1940"]

1. e4 {[%emt 03:41:46]} e6 {[%emt 00:00:08]} 2. Nf3 {[%emt 00:00:06]} d5 {[%emt
00:00:28]} 3. e5 {[%emt 00:00:05]} c5 {[%emt 00:00:35]} 4. b4 {[%emt 00:00:07]}
c4 {[%emt 00:02:48]} 5. a3 {[%emt 00:00:56]} a5 {[%emt 00:01:29]} 6. b5 {[%emt
00:01:15]} a4 {[%emt 00:03:11]} 7. d3 {[%emt 00:01:37]} Qa5+ {[%emt 00:03:13]}
8. Bd2 {[%emt 00:02:49]} Qxb5 {[%emt 00:00:48]} 9. Nc3 {[%emt 00:01:22]} Qc5
{[%emt 00:05:25]} 10. dxc4 {[%emt 00:10:57]} dxc4 {[%emt 00:04:02]} 11. Qe2
{[%emt 00:11:54]} Nd7 {[%emt 00:15:53]} 12. Ne4 {[%emt 00:10:00]} Qd5 {[%emt
00:02:29]} 13. Bc3 {[%emt 00:05:10]} Nc5 {[%emt 00:09:22]} 14. Nxc5 {[%emt
00:01:55]} Bxc5 {[%emt 00:03:14]} 15. Qxc4 {[%emt 00:01:43]} Ne7 {[%emt
00:03:25]} 16. Bd3 {[%emt 00:02:24]} 1/2-1/2

[Event "Klass I-IV 2025"]
[Site "Uppsala, Sweden"]
[Date "2025.07.04"]
[Round "5.2"]
[White "Rehnberg, Karl-Oskar"]
[Black "Fahlberg, Kenneth"]
[Result "0-1"]
[TimeControl "90 min for 40 move + 30 min with an increment of 30 sec starting move 1"]
[WhiteFideId "1781995"]
[BlackFideId "1747444"]
[WhiteElo "1811"]
[BlackElo "1863"]

1. e4 {[%clk 01:30:57]} {[%emt 00:00:02]} c5 {[%clk 01:30:49]} {[%emt
00:00:11]} 2. Nf3 {[%clk 01:31:14]} {[%emt 00:00:14]} Nc6 {[%clk 01:31:04]}
{[%emt 00:00:15]} 3. d4 {[%clk 01:31:23]} {[%emt 00:00:21]} cxd4 {[%clk
01:31:25]} {[%emt 00:00:09]} 4. Nxd4 {[%clk 01:31:48]} {[%emt 00:00:05]} g6
{[%clk 01:30:48]} {[%emt 00:01:06]} 5. c4 {[%clk 01:31:52]} {[%emt 00:00:27]}
Nf6 {[%clk 01:27:43]} {[%emt 00:03:34]} 6. Nc3 {[%clk 01:32:17]} {[%emt
00:00:06]} Nxd4 {[%clk 01:24:52]} {[%emt 00:03:22]} 7. Qxd4 {[%clk 01:32:23]}
{[%emt 00:00:23]} d6 {[%clk 01:19:01]} {[%emt 00:06:20]} 8. Be3 {[%clk
01:32:25]} {[%emt 00:00:29]} Bg7 {[%clk 01:16:11]} {[%emt 00:03:20]} 9. Be2
{[%clk 01:32:27]} {[%emt 00:00:28]} O-O {[%clk 01:16:09]} {[%emt 00:00:32]} 10.
Qd3 {[%clk 01:32:00]} {[%emt 00:00:56]} Ng4 {[%clk 01:14:27]} {[%emt 00:02:12]}
11. Bxg4 {[%clk 01:30:38]} {[%emt 00:01:53]} Bxg4 {[%clk 01:14:18]} {[%emt
00:00:39]} 12. O-O {[%clk 01:30:24]} {[%emt 00:00:44]} Be6 {[%clk 01:09:02]}
{[%emt 00:05:45]} 13. Bd4 {[%clk 01:24:35]} {[%emt 00:06:20]} Rc8 {[%clk
01:04:02]} {[%emt 00:05:30]} 14. b3 {[%clk 01:22:52]} {[%emt 00:02:13]} a6
{[%clk 00:55:53]} {[%emt 00:08:38]} 15. Bxg7 {[%clk 01:10:10]} {[%emt
00:13:12]} Kxg7 {[%clk 00:53:53]} {[%emt 00:02:30]} 16. Qd4+ {[%clk 01:09:44]}
{[%emt 00:00:56]} Kg8 {[%clk 00:51:30]} {[%emt 00:02:53]} 17. f4 {[%clk
01:09:28]} {[%emt 00:00:47]} f6 {[%clk 00:44:13]} {[%emt 00:07:47]} 18. f5
{[%clk 01:08:10]} {[%emt 00:01:48]} Bf7 {[%clk 00:43:35]} {[%emt 00:01:07]} 19.
fxg6 {[%clk 01:04:17]} {[%emt 00:04:24]} hxg6 {[%clk 00:43:33]} {[%emt
00:00:31]} 20. Nd5 {[%clk 00:52:12]} {[%emt 00:12:35]} Kg7 {[%clk 00:43:22]}
{[%emt 00:00:41]} 21. Nc3 {[%clk 00:33:42]} {[%emt 00:19:01]} Rh8 {[%clk
00:39:01]} {[%emt 00:04:50]} 22. a4 {[%clk 00:31:31]} {[%emt 00:02:42]} Rh5
{[%clk 00:37:36]} {[%emt 00:01:53]} 23. Rad1 {[%clk 00:29:49]} {[%emt
00:02:09]} Qc7 {[%clk 00:30:49]} {[%emt 00:07:21]} 24. Kh1 {[%clk 00:27:02]}
{[%emt 00:03:18]} d5 {[%clk 00:27:26]} {[%emt 00:03:53]} 25. e5 {[%clk
00:24:52]} {[%emt 00:02:40]} Qxe5 {[%clk 00:24:03]} {[%emt 00:03:52]} 26. Qxe5
{[%clk 00:23:48]} {[%emt 00:01:34]} Rxe5 {[%clk 00:24:14]} {[%emt 00:00:19]} 27.
Nxd5 {[%clk 00:23:30]} {[%emt 00:00:49]} Bxd5 {[%clk 00:24:12]} {[%emt
00:00:31]} 28. cxd5 {[%clk 00:23:24]} {[%emt 00:00:36]} Rd8 {[%clk 00:22:14]}
{[%emt 00:02:28]} 29. Rc1 {[%clk 00:21:15]} {[%emt 00:02:40]} Rexd5 {[%clk
00:21:47]} {[%emt 00:00:56]} 30. Kg1 {[%clk 00:20:38]} {[%emt 00:01:08]} Rd3
{[%clk 00:21:14]} {[%emt 00:01:01]} 31. Rc7 {[%clk 00:20:24]} {[%emt 00:00:45]}
R8d7 {[%clk 00:20:36]} {[%emt 00:01:08]} 32. Rfc1 {[%clk 00:19:33]} {[%emt
00:01:21]} Kf7 {[%clk 00:17:28]} {[%emt 00:03:38]} 33. R1c3 {[%clk 00:17:29]}
{[%emt 00:02:33]} Rxc3 {[%clk 00:15:50]} {[%emt 00:02:10]} 34. Rxc3 {[%clk
00:17:16]} {[%emt 00:00:42]} e5 {[%clk 00:15:56]} {[%emt 00:00:24]} 35. Kf2
{[%clk 00:17:08]} {[%emt 00:00:39]} Ke6 {[%clk 00:15:53]} {[%emt 00:00:32]} 36.
Ke3 {[%clk 00:16:26]} {[%emt 00:01:13]} Rh7 {[%clk 00:08:01]} {[%emt 00:08:21]}
37. h3 {[%clk 00:13:50]} {[%emt 00:03:06]} Rd7 {[%clk 00:07:45]} {[%emt
00:00:45]} 38. Rc8 {[%clk 00:12:27]} {[%emt 00:01:54]} Rd4 {[%clk 00:04:12]}
{[%emt 00:04:01]} 39. Re8+ {[%clk 00:09:04]} {[%emt 00:03:55]} Kf5 {[%clk
00:02:31]} {[%emt 00:02:11]} 40. Rc8 {[%clk 00:06:08]} {[%emt 00:03:27]} Rb4
{[%clk 00:02:39]} {[%emt 00:00:21]} 41. Rc3 {[%clk 00:06:09]} {[%emt 00:00:29]}
Kg5 {[%clk 00:28:03]} {[%emt 00:05:06]} 42. g3 {[%clk 00:35:26]} {[%emt
00:01:13]} f5 {[%clk 00:22:45]} {[%emt 00:05:49]} 43. Kf3 {[%clk 00:35:11]}
{[%emt 00:00:45]} a5 {[%clk 00:21:39]} {[%emt 00:01:36]} 44. h4+ {[%clk
00:31:11]} {[%emt 00:04:30]} Kh5 {[%clk 00:18:30]} {[%emt 00:03:37]} 45. Re3
{[%clk 00:30:54]} {[%emt 00:00:44]} b5 {[%clk 00:15:24]} {[%emt 00:03:40]} 46.
axb5 {[%clk 00:29:39]} {[%emt 00:01:46]} Rxb5 {[%clk 00:15:46]} {[%emt
00:00:07]} 47. Rc3 {[%clk 00:30:00]} {[%emt 00:00:06]} g5 {[%clk 00:12:24]}
{[%emt 00:03:54]} 48. hxg5 {[%clk 00:29:17]} {[%emt 00:01:14]} Kxg5 {[%clk
00:12:47]} {[%emt 00:00:08]} 49. Re3 {[%clk 00:26:43]} {[%emt 00:03:03]} e4+
{[%clk 00:12:48]} {[%emt 00:00:28]} 50. Kf2 {[%clk 00:26:34]} {[%emt 00:00:40]}
Kg4 {[%clk 00:10:46]} {[%emt 00:02:32]} 51. Kf1 {[%clk 00:14:51]} {[%emt
00:12:14]} Rd5 {[%clk 00:11:01]} {[%emt 00:00:14]} 52. Rc3 {[%clk 00:13:21]}
{[%emt 00:02:00]} Rd3 {[%clk 00:10:26]} {[%emt 00:01:04]} 53. Rc5 {[%clk
00:13:47]} {[%emt 00:00:05]} Rxb3 {[%clk 00:09:13]} {[%emt 00:01:43]} 54. Rxa5
{[%clk 00:13:48]} {[%emt 00:00:30]} Rxg3 {[%clk 00:09:32]} {[%emt 00:00:11]} 55.
Ra8 {[%clk 00:13:02]} {[%emt 00:01:15]} Rb3 {[%clk 00:09:04]} {[%emt 00:00:56]}
56. Ke2 {[%clk 00:13:00]} {[%emt 00:00:34]} Kf4 {[%clk 00:08:56]} {[%emt
00:00:39]} 57. Rh8 {[%clk 00:12:34]} {[%emt 00:00:55]} Rb2+ {[%clk 00:09:12]}
{[%emt 00:00:13]} 58. Ke1 {[%clk 00:12:57]} {[%emt 00:00:08]} Kg3 {[%clk
00:08:01]} {[%emt 00:01:41]} 59. Rg8+ {[%clk 00:12:29]} {[%emt 00:00:59]} Kf3
{[%clk 00:08:23]} {[%emt 00:00:08]} 60. Rh8 {[%clk 00:12:27]} {[%emt 00:00:32]}
Rb1+ {[%clk 00:05:03]} {[%emt 00:03:49]} 61. Kd2 {[%clk 00:12:53]} {[%emt
00:00:05]} e3+ {[%clk 00:04:59]} {[%emt 00:00:33]} 62. Kc2 {[%clk 00:13:08]}
{[%emt 00:00:15]} e2 {[%clk 00:04:33]} {[%emt 00:00:57]} 0-1